[Event "*** Titled Tuesday 3|2 Blitz"]
[Site "Chess.com"]
[Date "2015.07.07"]
[Round "1"]
[White "Penguininja"]
[Black "Lupul_Cenusiu"]
[Result "0-1"]
[WhiteElo "2098"]
[BlackElo "2375"]
[TimeControl "180+2"]
[EndTime "11:09:54 PDT"]
[Termination "Lupul_Cenusiu won by resignation"]

1. d4 {[%clk 0:02:57.7]} 1... Nf6 {[%clk 0:03:00.4]} 2. Nf3 {[%clk 0:02:54.1]}
2... g6 {[%clk 0:03:01.1]} 3. c4 {[%clk 0:02:48.2]} 3... Bg7 {[%clk 0:03:01.7]}
4. Nc3 {[%clk 0:02:40.2]} 4... O-O {[%clk 0:03:02.7]} 5. Bg5 {[%clk 0:02:40.5]}
5... d6 {[%clk 0:03:02.6]} 6. e3 {[%clk 0:02:40.1]} 6... c6 {[%clk 0:03:01.6]}
7. Be2 {[%clk 0:02:36.2]} 7... Nbd7 {[%clk 0:02:59.1]} 8. O-O {[%clk 0:02:36.7]}
8... h6 {[%clk 0:02:58.9]} 9. Bh4 {[%clk 0:02:37.5]} 9... Qc7 {[%clk 0:02:58.7]}
10. Qc2 {[%clk 0:02:38.2]} 10... e5 {[%clk 0:02:57.3]} 11. Rfd1 {[%clk
0:02:36.1]} 11... Re8 {[%clk 0:02:57.7]} 12. Rac1 {[%clk 0:02:31.7]} 12... Nh7
{[%clk 0:02:52]} 13. Bg3 {[%clk 0:02:29.1]} 13... Nhf8 {[%clk 0:02:42.5]} 14. b4
{[%clk 0:02:21.7]} 14... a5 {[%clk 0:02:26.7]} 15. a3 {[%clk 0:02:20.6]} 15...
axb4 {[%clk 0:02:27]} 16. axb4 {[%clk 0:02:22]} 16... Qb6 {[%clk 0:02:28.5]} 17.
Rb1 {[%clk 0:02:06.2]} 17... Ra3 {[%clk 0:02:15.5]} 18. c5 {[%clk 0:01:48.4]}
18... dxc5 {[%clk 0:02:16.2]} 19. dxc5 {[%clk 0:01:28.2]} 19... Qa7 {[%clk
0:02:17.2]} 20. Bc4 {[%clk 0:01:18.9]} 20... Re7 {[%clk 0:02:10.2]} 21. Ne4
{[%clk 0:01:03.7]} 21... Nf6 {[%clk 0:01:57]} 22. Nd6 {[%clk 0:00:47.3]} 22...
Bg4 {[%clk 0:01:57.4]} 23. Rd2 {[%clk 0:00:38.1]} 23... Bxf3 {[%clk 0:01:52.6]}
24. gxf3 {[%clk 0:00:40]} 24... Qa4 {[%clk 0:01:52.5]} 25. Qb2 {[%clk
0:00:32.1]} 25... Nh5 {[%clk 0:01:41.5]} 26. Ne4 {[%clk 0:00:21]} 26... Nxg3
{[%clk 0:01:39.4]} 27. hxg3 {[%clk 0:00:21.3]} 27... Kh7 {[%clk 0:01:35.2]} 28.
Rbd1 {[%clk 0:00:19.6]} 28... f5 {[%clk 0:01:35.5]} 29. Nc3 {[%clk 0:00:18.5]}
29... Qa7 {[%clk 0:01:33.7]} 30. e4 {[%clk 0:00:19.7]} 30... f4 {[%clk
0:01:22.7]} 31. gxf4 {[%clk 0:00:20.3]} 31... exf4 {[%clk 0:01:23.6]} 32. Rd3
{[%clk 0:00:21.1]} 32... h5 {[%clk 0:01:15.6]} 33. Qc2 {[%clk 0:00:21.2]} 33...
Qb8 {[%clk 0:01:14.7]} 34. Ne2 {[%clk 0:00:22.2]} 34... Qe5 {[%clk 0:01:14.6]}
35. Rxa3 {[%clk 0:00:22.6]} 35... Qg5+ {[%clk 0:01:14.7]} 36. Kf1 {[%clk
0:00:24.2]} 36... Kh6 {[%clk 0:01:09.8]} 37. Qd2 {[%clk 0:00:25.1]} 37... Be5
{[%clk 0:01:09.1]} 38. Ra8 {[%clk 0:00:24.2]} 38... Nh7 {[%clk 0:01:10.1]} 39.
Ng1 {[%clk 0:00:23.7]} 39... Qf6 {[%clk 0:01:09.5]} 40. Qd8 {[%clk 0:00:24.1]}
40... Ng5 {[%clk 0:01:09.6]} 41. Rd7 {[%clk 0:00:21.8]} 41... Rxd7 {[%clk
0:01:06.6]} 42. Qxd7 {[%clk 0:00:23.4]} 42... h4 {[%clk 0:01:07.1]} 43. Nh3
{[%clk 0:00:23]} 43... Nxf3 {[%clk 0:01:05.8]} 44. Qd8 {[%clk 0:00:19]} 44... g5
{[%clk 0:01:02.9]} 45. Qxf6+ {[%clk 0:00:19.7]} 45... Bxf6 {[%clk 0:01:03.4]}
46. Be2 {[%clk 0:00:21.4]} 46... Nd2+ {[%clk 0:01:01.7]} 47. Ke1 {[%clk
0:00:22.5]} 47... Nxe4 {[%clk 0:01:03]} 48. Rb8 {[%clk 0:00:21.7]} 48... Bc3+
{[%clk 0:01:02.2]} 49. Kf1 {[%clk 0:00:21.9]} 49... Bxb4 {[%clk 0:00:59.5]} 50.
Rxb7 {[%clk 0:00:23.3]} 50... Bxc5 {[%clk 0:01:00.6]} 51. Rc7 {[%clk 0:00:23.8]}
51... Nd2+ {[%clk 0:00:58.1]} 52. Kg2 {[%clk 0:00:24.5]} 52... f3+ {[%clk
0:00:56.3]} 53. Bxf3 {[%clk 0:00:24.7]} 53... Nxf3 {[%clk 0:00:57.4]} 54. Kxf3
{[%clk 0:00:26.6]} 54... Kh5 {[%clk 0:00:58.8]} 55. Kg2 {[%clk 0:00:26.1]} 55...
g4 {[%clk 0:00:58.7]} 56. Nf4+ {[%clk 0:00:27.3]} 56... Kg5 {[%clk 0:01:00.1]}
57. Nd3 {[%clk 0:00:28.7]} 57... h3+ {[%clk 0:00:59.9]} 58. Kg1 {[%clk
0:00:28.9]} 58... Bd4 {[%clk 0:00:59]} 59. Rxc6 {[%clk 0:00:29.1]} 59... g3
{[%clk 0:01:00.4]} 60. Rd6 {[%clk 0:00:24]} 60... gxf2+ {[%clk 0:00:54.4]} 61.
Nxf2 {[%clk 0:00:23.4]} 61... h2+ {[%clk 0:00:55.6]} 62. Kxh2 {[%clk 0:00:16.5]}
62... Be5+ {[%clk 0:00:56.5]} 0-1

[Event "*** Titled Tuesday 3|2 Blitz"]
[Site "Chess.com"]
[Date "2015.07.07"]
[Round "1"]
[White "GMHess"]
[Black "patzerplay"]
[Result "1/2-1/2"]
[WhiteElo "2552"]
[BlackElo "2193"]
[TimeControl "180+2"]
[EndTime "11:12:23 PDT"]
[Termination "Game drawn by agreement"]

1. b3 {[%clk 0:02:59.7]} 1... d6 {[%clk 0:02:54.5]} 2. Bb2 {[%clk 0:03:01.6]}
2... c6 {[%clk 0:02:55.9]} 3. Nf3 {[%clk 0:03:02.7]} 3... Qc7 {[%clk 0:02:57]}
4. d4 {[%clk 0:03:03.6]} 4... Nf6 {[%clk 0:02:54.1]} 5. Nbd2 {[%clk 0:03:04.6]}
5... Nbd7 {[%clk 0:02:51.9]} 6. e4 {[%clk 0:03:05.7]} 6... e5 {[%clk 0:02:53.1]}
7. Bc4 {[%clk 0:03:04.5]} 7... Be7 {[%clk 0:02:47.9]} 8. O-O {[%clk 0:03:05.3]}
8... O-O {[%clk 0:02:46.7]} 9. a4 {[%clk 0:03:06.5]} 9... b6 {[%clk 0:02:32.1]}
10. Re1 {[%clk 0:02:54.1]} 10... Bb7 {[%clk 0:02:33.2]} 11. Nf1 {[%clk
0:02:52.4]} 11... Rfe8 {[%clk 0:02:32.3]} 12. Ng3 {[%clk 0:02:48.2]} 12... Bf8
{[%clk 0:02:32.9]} 13. Qd3 {[%clk 0:02:42.9]} 13... h6 {[%clk 0:02:26.8]} 14.
Rad1 {[%clk 0:02:37.9]} 14... Rad8 {[%clk 0:02:26.9]} 15. Ba6 {[%clk 0:02:20.3]}
15... Ba8 {[%clk 0:02:25.3]} 16. Nf5 {[%clk 0:02:19.8]} 16... exd4 {[%clk
0:02:06.4]} 17. Qxd4 {[%clk 0:02:15.6]} 17... Ne5 {[%clk 0:02:05.7]} 18. Qc3
{[%clk 0:01:56]} 18... c5 {[%clk 0:01:56.7]} 19. Nxe5 {[%clk 0:01:53.7]} 19...
dxe5 {[%clk 0:01:58.6]} 20. f3 {[%clk 0:01:55.2]} 20... Rxd1 {[%clk 0:01:51.6]}
21. Rxd1 {[%clk 0:01:57.1]} 21... Rd8 {[%clk 0:01:53.2]} 22. Rd3 {[%clk
0:01:53.8]} 22... Rxd3 {[%clk 0:01:46.7]} 23. Bxd3 {[%clk 0:01:55.7]} 23... Nd7
{[%clk 0:01:46.8]} 24. Bc4 {[%clk 0:01:49.5]} 24... g6 {[%clk 0:01:40.4]} 25.
Ne3 {[%clk 0:01:50.2]} 25... Qd6 {[%clk 0:01:36.4]} 26. Qe1 {[%clk 0:01:42.7]}
26... Nb8 {[%clk 0:01:32.6]} 27. Bb5 {[%clk 0:01:37.6]} 27... Bg7 {[%clk
0:01:31.1]} 28. Nc4 {[%clk 0:01:38.6]} 28... Qc7 {[%clk 0:01:28.8]} 29. Qd2
{[%clk 0:01:23.2]} 29... a6 {[%clk 0:01:24.9]} 30. Be8 {[%clk 0:01:24]} 30...
Qe7 {[%clk 0:01:22]} 31. Nd6 {[%clk 0:01:07.8]} 31... Bf8 {[%clk 0:01:08.6]} 32.
Bxf7+ {[%clk 0:01:06.9]} 32... Kh7 {[%clk 0:01:05.4]} 33. Nc8 {[%clk 0:00:48.3]}
33... Qxf7 {[%clk 0:01:01.8]} 34. Nxb6 {[%clk 0:00:49.7]} 34... Bc6 {[%clk
0:00:32.7]} 35. Nc4 {[%clk 0:00:50.6]} 35... Nd7 {[%clk 0:00:33.2]} 36. Nxe5
{[%clk 0:00:50.7]} 36... Nxe5 {[%clk 0:00:34.2]} 37. Bxe5 {[%clk 0:00:52.6]}
37... Qe6 {[%clk 0:00:35.3]} 38. Qf4 {[%clk 0:00:42.8]} 38... Bg7 {[%clk
0:00:30]} 39. Bxg7 {[%clk 0:00:43.5]} 39... Kxg7 {[%clk 0:00:31.9]} 40. Qc7+
{[%clk 0:00:43.4]} 40... Qd7 {[%clk 0:00:33.1]} 41. Qe5+ {[%clk 0:00:42.1]}
41... Kh7 {[%clk 0:00:33.8]} 42. h4 {[%clk 0:00:42.1]} 42... c4 {[%clk
0:00:32.4]} 43. Kh2 {[%clk 0:00:31.3]} 43... cxb3 {[%clk 0:00:32]} 44. cxb3
{[%clk 0:00:33.2]} 44... Qf7 {[%clk 0:00:31.8]} 45. Qd6 {[%clk 0:00:29]} 45...
Qb7 {[%clk 0:00:29.2]} 46. e5 {[%clk 0:00:21.6]} 46... Qd7 {[%clk 0:00:30.1]}
47. Qc5 {[%clk 0:00:14.9]} 47... Bd5 {[%clk 0:00:29.8]} 48. b4 {[%clk
0:00:15.1]} 48... Bc6 {[%clk 0:00:29.7]} 49. b5 {[%clk 0:00:13]} 49... axb5
{[%clk 0:00:30.2]} 50. axb5 {[%clk 0:00:14]} 50... Bxb5 {[%clk 0:00:32.1]} 51.
e6 {[%clk 0:00:15.1]} 51... Qe8 {[%clk 0:00:17.4]} 52. Qe5 {[%clk 0:00:13.6]}
52... Bd7 {[%clk 0:00:14.4]} 53. e7 {[%clk 0:00:12.3]} 53... Kg8 {[%clk
0:00:14.4]} 54. Kg3 {[%clk 0:00:12.3]} 54... Kf7 {[%clk 0:00:15.5]} 55. Qf4+
{[%clk 0:00:13.2]} 55... Kg7 {[%clk 0:00:16.6]} 56. Qe5+ {[%clk 0:00:10.3]}
56... Kf7 {[%clk 0:00:17.6]} 57. Qf4+ {[%clk 0:00:11.8]} 57... Kg7 {[%clk
0:00:18.8]} 58. Qe3 {[%clk 0:00:13.5]} 58... Bf5 {[%clk 0:00:17.4]} 59. h5
{[%clk 0:00:12]} 59... gxh5 {[%clk 0:00:16.5]} 60. Qe5+ {[%clk 0:00:13.2]} 60...
Kg6 {[%clk 0:00:16.4]} 61. Kh4 {[%clk 0:00:14.3]} 61... Bd7 {[%clk 0:00:16.3]}
62. Qxh5+ {[%clk 0:00:15]} 62... Kg7 {[%clk 0:00:17.3]} 63. Qe5+ {[%clk
0:00:10.9]} 63... Kf7 {[%clk 0:00:18]} 64. Qf4+ {[%clk 0:00:12.5]} 64... Kg7
{[%clk 0:00:17.2]} 65. Qe3 {[%clk 0:00:10.4]} 65... Kf7 {[%clk 0:00:15.5]} 66.
Qxh6 {[%clk 0:00:07.3]} 66... Qxe7+ {[%clk 0:00:16.7]} 67. Kg3 {[%clk
0:00:07.3]} 67... Qe1+ {[%clk 0:00:17.3]} 68. Kh2 {[%clk 0:00:07.5]} 68... Qd1
{[%clk 0:00:15.8]} 69. Qf4+ {[%clk 0:00:08]} 69... Kg6 {[%clk 0:00:16.9]} 70.
Qg3+ {[%clk 0:00:08.2]} 70... Kf7 {[%clk 0:00:17.7]} 71. Qf4+ {[%clk 0:00:09.1]}
71... Kg6 {[%clk 0:00:19]} 72. Qe5 {[%clk 0:00:10.6]} 72... Qd3 {[%clk
0:00:18.7]} 73. Kg3 {[%clk 0:00:11]} 73... Qf5 {[%clk 0:00:18.7]} 74. Qd6+
{[%clk 0:00:11.6]} 74... Qe6 {[%clk 0:00:19.6]} 75. Qd3+ {[%clk 0:00:12.7]}
75... Qf5 {[%clk 0:00:20.2]} 76. Qd4 {[%clk 0:00:14.4]} 76... Qg5+ {[%clk
0:00:20.8]} 77. Kf2 {[%clk 0:00:15.7]} 77... Qf5 {[%clk 0:00:21]} 78. g4 {[%clk
0:00:15.5]} 78... Qc2+ {[%clk 0:00:21.9]} 79. Kg3 {[%clk 0:00:16.3]} 79... Qa4
{[%clk 0:00:21.1]} 80. Qd6+ {[%clk 0:00:15.9]} 80... Kf7 {[%clk 0:00:21.8]} 81.
g5 {[%clk 0:00:16]} 81... Qc6 {[%clk 0:00:21.2]} 82. Qe5 {[%clk 0:00:12.7]}
82... Kg6 {[%clk 0:00:20.9]} 83. Kh4 {[%clk 0:00:12.4]} 83... Qe6 {[%clk
0:00:13.5]} 84. Qxe6+ {[%clk 0:00:08.7]} 84... Bxe6 {[%clk 0:00:15.4]} 85. f4
{[%clk 0:00:10.1]} 85... Bf5 {[%clk 0:00:16.6]} 86. Kg3 {[%clk 0:00:11.3]} 86...
Be6 {[%clk 0:00:18.5]} 87. Kf3 {[%clk 0:00:13.2]} 87... Bf5 {[%clk 0:00:20.4]}
88. Ke3 {[%clk 0:00:14.9]} 88... Bg4 {[%clk 0:00:20.9]} 89. Ke4 {[%clk
0:00:16.4]} 89... Bf5+ {[%clk 0:00:22.5]} 90. Ke5 {[%clk 0:00:18.3]} 90... Bg4
{[%clk 0:00:24]} 1/2-1/2

[Event "*** Titled Tuesday 3|2 Blitz"]
[Site "Chess.com"]
[Date "2015.07.07"]
[Round "2"]
[White "Bab3s"]
[Black "lukas_111111"]
[Result "0-1"]
[WhiteElo "2180"]
[BlackElo "2177"]
[TimeControl "180+2"]
[EndTime "11:18:17 PDT"]
[Termination "lukas_111111 won by checkmate"]

1. e4 {[%clk 0:03:01.9]} 1... c6 {[%clk 0:02:59.4]} 2. d4 {[%clk 0:03:02.9]}
2... d5 {[%clk 0:03:00.3]} 3. exd5 {[%clk 0:03:04.8]} 3... cxd5 {[%clk 0:03:01]}
4. c4 {[%clk 0:03:06.4]} 4... Nf6 {[%clk 0:02:59.8]} 5. Nc3 {[%clk 0:03:07.9]}
5... Nc6 {[%clk 0:02:59.8]} 6. Bg5 {[%clk 0:03:08.5]} 6... Ne4 {[%clk
0:02:47.5]} 7. Nxe4 {[%clk 0:02:20.6]} 7... dxe4 {[%clk 0:02:47.9]} 8. d5 {[%clk
0:02:22.1]} 8... Ne5 {[%clk 0:02:42.9]} 9. Qd4 {[%clk 0:02:17]} 9... f6 {[%clk
0:02:34.2]} 10. Qxe4 {[%clk 0:01:57.3]} 10... Qb6 {[%clk 0:02:19.6]} 11. b3
{[%clk 0:01:17.9]} 11... e6 {[%clk 0:02:10.8]} 12. Bd2 {[%clk 0:01:10]} 12...
Bc5 {[%clk 0:02:03.1]} 13. Qe2 {[%clk 0:00:41.1]} 13... O-O {[%clk 0:01:44.4]}
14. Nf3 {[%clk 0:00:30.6]} 14... exd5 {[%clk 0:01:44.8]} 15. cxd5 {[%clk
0:00:27]} 15... Re8 {[%clk 0:01:38.5]} 16. O-O-O {[%clk 0:00:23.8]} 16... Bf5
{[%clk 0:01:32.7]} 17. Nxe5 {[%clk 0:00:17]} 17... Ba3# {[%clk 0:01:32]} 0-1

[Event "*** Titled Tuesday 3|2 Blitz"]
[Site "Chess.com"]
[Date "2015.07.07"]
[Round "2"]
[White "KyronGriffith"]
[Black "Keranke"]
[Result "0-1"]
[WhiteElo "2248"]
[BlackElo "2540"]
[TimeControl "180+2"]
[EndTime "11:18:30 PDT"]
[Termination "Keranke won by resignation"]

1. e4 {[%clk 0:03:01.9]} 1... g6 {[%clk 0:03:00.5]} 2. d4 {[%clk 0:03:02.6]}
2... Bg7 {[%clk 0:03:02.1]} 3. Nf3 {[%clk 0:03:03.8]} 3... d6 {[%clk 0:03:03.7]}
4. Bd3 {[%clk 0:03:05.2]} 4... Nf6 {[%clk 0:03:04.3]} 5. c3 {[%clk 0:03:06.5]}
5... O-O {[%clk 0:03:05.7]} 6. O-O {[%clk 0:03:08]} 6... Nc6 {[%clk 0:03:07.3]}
7. Nbd2 {[%clk 0:03:09.2]} 7... e5 {[%clk 0:03:08.6]} 8. d5 {[%clk 0:03:07.6]}
8... Ne7 {[%clk 0:03:08.5]} 9. Re1 {[%clk 0:03:08.5]} 9... h6 {[%clk 0:03:04.6]}
10. c4 {[%clk 0:03:07]} 10... Nh5 {[%clk 0:03:05.7]} 11. g3 {[%clk 0:03:05]}
11... Qe8 {[%clk 0:02:56.1]} 12. Bf1 {[%clk 0:03:00.8]} 12... f5 {[%clk
0:02:57.3]} 13. Bg2 {[%clk 0:02:49.9]} 13... f4 {[%clk 0:02:56]} 14. b4 {[%clk
0:02:48.7]} 14... g5 {[%clk 0:02:55.1]} 15. Nb3 {[%clk 0:02:44.2]} 15... g4
{[%clk 0:02:49.4]} 16. Nfd2 {[%clk 0:02:43.8]} 16... Qf7 {[%clk 0:02:39]} 17. c5
{[%clk 0:02:25.9]} 17... Ng6 {[%clk 0:02:20.1]} 18. Nc4 {[%clk 0:02:23.5]} 18...
fxg3 {[%clk 0:02:00.1]} 19. fxg3 {[%clk 0:02:24.5]} 19... Qf2+ {[%clk
0:02:01.5]} 20. Kh1 {[%clk 0:02:25.8]} 20... Nxg3+ {[%clk 0:02:03.2]} 21. hxg3
{[%clk 0:02:24.6]} 21... Qxg3 {[%clk 0:02:05.1]} 22. Rf1 {[%clk 0:02:13.9]}
22... Nf4 {[%clk 0:01:55.2]} 23. Ne3 {[%clk 0:01:47.1]} 23... Qh4+ {[%clk
0:01:45]} 24. Kg1 {[%clk 0:01:47.8]} 24... g3 {[%clk 0:01:46.6]} 25. Rf3 {[%clk
0:01:40.3]} 25... Qh2+ {[%clk 0:01:46.9]} 26. Kf1 {[%clk 0:01:41.5]} 26... Bh3
{[%clk 0:01:45]} 0-1

[Event "*** Titled Tuesday 3|2 Blitz"]
[Site "Chess.com"]
[Date "2015.07.07"]
[Round "2"]
[White "ashookk"]
[Black "Hafez_Bakr"]
[Result "1-0"]
[WhiteElo "1955"]
[BlackElo "1728"]
[TimeControl "180+2"]
[EndTime "11:18:59 PDT"]
[Termination "ashookk won by resignation"]

1. Nf3 {[%clk 0:03:01.9]} 1... c5 {[%clk 0:02:59.7]} 2. c4 {[%clk 0:03:03.1]}
2... d6 {[%clk 0:03:00.6]} 3. Nc3 {[%clk 0:03:04.3]} 3... Nc6 {[%clk 0:03:01.6]}
4. d4 {[%clk 0:03:05.4]} 4... Nf6 {[%clk 0:03:03.2]} 5. d5 {[%clk 0:03:05.9]}
5... Ne5 {[%clk 0:03:03.8]} 6. Nxe5 {[%clk 0:03:05.8]} 6... dxe5 {[%clk
0:03:03.5]} 7. e4 {[%clk 0:03:07.7]} 7... g6 {[%clk 0:03:04.2]} 8. Be2 {[%clk
0:03:06.3]} 8... Bg7 {[%clk 0:03:05.6]} 9. Be3 {[%clk 0:03:07.7]} 9... b6 {[%clk
0:03:03.8]} 10. Qd2 {[%clk 0:03:08.2]} 10... O-O {[%clk 0:03:03.1]} 11. h4
{[%clk 0:03:05.9]} 11... h5 {[%clk 0:03:02.1]} 12. f3 {[%clk 0:03:05.6]} 12...
Qd7 {[%clk 0:02:59.5]} 13. Rg1 {[%clk 0:02:56]} 13... Kh7 {[%clk 0:02:53.6]} 14.
g4 {[%clk 0:02:56.8]} 14... Rg8 {[%clk 0:02:51.9]} 15. O-O-O {[%clk 0:02:51.2]}
15... a6 {[%clk 0:02:44.3]} 16. Kb1 {[%clk 0:02:50]} 16... Rb8 {[%clk
0:02:42.8]} 17. f4 {[%clk 0:02:03.9]} 17... Nxg4 {[%clk 0:02:35.1]} 18. Bxg4
{[%clk 0:02:03.4]} 18... hxg4 {[%clk 0:02:35.3]} 19. h5 {[%clk 0:02:01.8]} 19...
gxh5 {[%clk 0:02:31.4]} 20. f5 {[%clk 0:01:41.1]} 20... Rh8 {[%clk 0:02:31]} 21.
Qf2 {[%clk 0:01:17.7]} 21... f6 {[%clk 0:02:23.9]} 22. Rh1 {[%clk 0:01:04.7]}
22... Kg8 {[%clk 0:02:24.5]} 23. Rh4 {[%clk 0:01:05.7]} 23... Kf7 {[%clk
0:02:20.5]} 24. Rdh1 {[%clk 0:01:06.7]} 24... Qd6 {[%clk 0:02:19.3]} 25. Rxh5
{[%clk 0:01:06.5]} 25... Rxh5 {[%clk 0:02:19.3]} 26. Rxh5 {[%clk 0:01:08.4]}
26... Bd7 {[%clk 0:02:20.1]} 27. Qh4 {[%clk 0:01:03.7]} 27... g3 {[%clk
0:02:16.4]} 28. Rh7 {[%clk 0:00:55.2]} 28... Rg8 {[%clk 0:02:15.1]} 29. Qxg3
{[%clk 0:00:51.8]} 29... Kf8 {[%clk 0:02:12.9]} 30. Rxg7 {[%clk 0:00:39.4]}
30... Rxg7 {[%clk 0:02:10.6]} 31. Bh6 {[%clk 0:00:40.6]} 31... Ke8 {[%clk
0:02:07.6]} 32. Qxg7 {[%clk 0:00:42.2]} 32... Kd8 {[%clk 0:02:07.4]} 33. Qf8+
{[%clk 0:00:43.2]} 33... Kc7 {[%clk 0:02:08.3]} 34. Qa8 {[%clk 0:00:43.6]} 34...
Bc8 {[%clk 0:02:07.7]} 35. Qa7+ {[%clk 0:00:43.6]} 35... Bb7 {[%clk 0:02:08.4]}
36. a4 {[%clk 0:00:43.3]} 36... a5 {[%clk 0:02:05.5]} 37. Nb5+ {[%clk
0:00:43.6]} 37... Kc8 {[%clk 0:02:05.5]} 38. Nxd6+ {[%clk 0:00:45.5]} 38... exd6
{[%clk 0:02:04.3]} 39. Qxb6 {[%clk 0:00:46.6]} 1-0

[Event "*** Titled Tuesday 3|2 Blitz"]
[Site "Chess.com"]
[Date "2015.07.07"]
[Round "2"]
[White "Viaje"]
[Black "BjarkeSahl"]
[Result "1-0"]
[WhiteElo "2259"]
[BlackElo "2101"]
[TimeControl "180+2"]
[EndTime "11:19:03 PDT"]
[Termination "Viaje won by resignation"]

1. d4 {[%clk 0:03:01.9]} 1... f5 {[%clk 0:02:56.3]} 2. Qd3 {[%clk 0:03:01.9]}
2... d5 {[%clk 0:02:39.7]} 3. c4 {[%clk 0:03:02.3]} 3... e6 {[%clk 0:02:35.8]}
4. Nf3 {[%clk 0:03:02.6]} 4... Nf6 {[%clk 0:02:36.2]} 5. Nc3 {[%clk 0:03:02.8]}
5... Be7 {[%clk 0:02:18.8]} 6. Bf4 {[%clk 0:03:02.9]} 6... O-O {[%clk
0:02:18.8]} 7. e3 {[%clk 0:03:02.7]} 7... c6 {[%clk 0:02:19.8]} 8. Qc2 {[%clk
0:03:02.7]} 8... Nbd7 {[%clk 0:02:14.5]} 9. h3 {[%clk 0:03:03.6]} 9... Ne4
{[%clk 0:02:09]} 10. Bd3 {[%clk 0:03:03.2]} 10... Ndf6 {[%clk 0:02:09.5]} 11.
Bh2 {[%clk 0:02:58.5]} 11... Bd7 {[%clk 0:02:03.3]} 12. O-O {[%clk 0:02:57.2]}
12... Be8 {[%clk 0:01:57.9]} 13. Ne5 {[%clk 0:02:58]} 13... Nd7 {[%clk
0:01:56.4]} 14. f3 {[%clk 0:02:54.2]} 14... Nxe5 {[%clk 0:01:54.7]} 15. Bxe5
{[%clk 0:02:53.3]} 15... Nd6 {[%clk 0:01:49.9]} 16. c5 {[%clk 0:02:51.8]} 16...
Nf7 {[%clk 0:01:48.9]} 17. Bh2 {[%clk 0:02:52.1]} 17... Bf6 {[%clk 0:01:45.3]}
18. Ne2 {[%clk 0:02:49.3]} 18... Ng5 {[%clk 0:01:36.9]} 19. f4 {[%clk
0:02:48.7]} 19... Ne4 {[%clk 0:01:36.7]} 20. Bxe4 {[%clk 0:02:49.3]} 20... dxe4
{[%clk 0:01:26.3]} 21. Nc3 {[%clk 0:02:49.8]} 21... Rf7 {[%clk 0:01:21.5]} 22.
Rab1 {[%clk 0:02:50.2]} 22... Rd7 {[%clk 0:01:21.6]} 23. b4 {[%clk 0:02:48.7]}
23... a6 {[%clk 0:01:21.2]} 24. a4 {[%clk 0:02:49.2]} 24... Rc8 {[%clk
0:01:04.5]} 25. Kh1 {[%clk 0:02:44.1]} 25... Rdc7 {[%clk 0:00:54.8]} 26. Rfc1
{[%clk 0:02:36.4]} 26... Kh8 {[%clk 0:00:56.3]} 27. Qb3 {[%clk 0:02:36.7]} 27...
Bf7 {[%clk 0:00:56.5]} 28. Qa3 {[%clk 0:02:37.2]} 28... Be8 {[%clk 0:00:56.5]}
29. b5 {[%clk 0:02:37.3]} 29... cxb5 {[%clk 0:00:55.6]} 30. axb5 {[%clk
0:02:38]} 30... axb5 {[%clk 0:00:56.7]} 31. Nxb5 {[%clk 0:02:38.3]} 31... Bxb5
{[%clk 0:00:57.7]} 32. Rxb5 {[%clk 0:02:37.8]} 32... h6 {[%clk 0:00:59]} 33.
Rcb1 {[%clk 0:02:37.4]} 33... Qd5 {[%clk 0:00:59.4]} 34. Bg3 {[%clk 0:02:35.4]}
34... Rg8 {[%clk 0:00:55.4]} 35. Qb3 {[%clk 0:02:34.6]} 35... Qxb3 {[%clk
0:00:52.1]} 36. R5xb3 {[%clk 0:02:33.9]} 36... Rb8 {[%clk 0:00:54]} 37. Be1
{[%clk 0:02:33.3]} 37... Kg8 {[%clk 0:00:55.2]} 38. Ba5 {[%clk 0:02:33.5]} 38...
Rf7 {[%clk 0:00:55.6]} 39. Kg1 {[%clk 0:02:34.3]} 39... g5 {[%clk 0:00:51.5]}
40. c6 {[%clk 0:02:31.5]} 40... gxf4 {[%clk 0:00:52]} 41. c7 {[%clk 0:02:31.8]}
41... Rc8 {[%clk 0:00:52.8]} 42. Rxb7 {[%clk 0:02:27.8]} 42... fxe3 {[%clk
0:00:53.2]} 43. Rb8 {[%clk 0:02:28.2]} 43... Rff8 {[%clk 0:00:50.2]} 44. Rxc8
{[%clk 0:02:28.1]} 44... Rxc8 {[%clk 0:00:50.9]} 45. Rb8 {[%clk 0:02:30]} 1-0

[Event "*** Titled Tuesday 3|2 Blitz"]
[Site "Chess.com"]
[Date "2015.07.07"]
[Round "2"]
[White "stefanodinn"]
[Black "GMHess"]
[Result "0-1"]
[WhiteElo "2135"]
[BlackElo "2553"]
[TimeControl "180+2"]
[EndTime "11:19:10 PDT"]
[Termination "GMHess won by resignation"]

1. e4 {[%clk 0:02:59.3]} 1... g6 {[%clk 0:03:00.2]} 2. d4 {[%clk 0:02:57.9]}
2... Bg7 {[%clk 0:03:01.2]} 3. Nc3 {[%clk 0:02:58.2]} 3... d6 {[%clk 0:02:59.8]}
4. g3 {[%clk 0:02:58]} 4... Nf6 {[%clk 0:03:00.7]} 5. Bg2 {[%clk 0:02:58.8]}
5... h5 {[%clk 0:03:02.4]} 6. h3 {[%clk 0:02:58.8]} 6... Nc6 {[%clk 0:03:02.4]}
7. Nge2 {[%clk 0:02:59]} 7... e5 {[%clk 0:03:03]} 8. Be3 {[%clk 0:02:58.7]} 8...
Bd7 {[%clk 0:02:58.7]} 9. Qd2 {[%clk 0:02:55.1]} 9... Qe7 {[%clk 0:02:57.4]} 10.
O-O-O {[%clk 0:02:48.6]} 10... O-O {[%clk 0:02:46.9]} 11. f4 {[%clk 0:02:41.6]}
11... exd4 {[%clk 0:02:28.8]} 12. Nxd4 {[%clk 0:02:41.7]} 12... Rae8 {[%clk
0:02:28.2]} 13. Rhe1 {[%clk 0:02:39.1]} 13... Qd8 {[%clk 0:02:24.4]} 14. Kb1
{[%clk 0:02:37.5]} 14... Qc8 {[%clk 0:02:22.9]} 15. Rh1 {[%clk 0:02:28.8]} 15...
Na5 {[%clk 0:02:13.3]} 16. b3 {[%clk 0:02:24.5]} 16... Nc6 {[%clk 0:02:14.2]}
17. Rdf1 {[%clk 0:02:14.2]} 17... Nxd4 {[%clk 0:02:02.7]} 18. Bxd4 {[%clk
0:02:14.3]} 18... c5 {[%clk 0:02:04.2]} 19. Be3 {[%clk 0:01:29.1]} 19... Bc6
{[%clk 0:01:55.7]} 20. Qxd6 {[%clk 0:01:13.1]} 20... Nxe4 {[%clk 0:01:49.2]} 21.
Nxe4 {[%clk 0:01:13.3]} 21... Bxe4 {[%clk 0:01:50.5]} 22. Bxe4 {[%clk
0:01:10.2]} 22... Rxe4 {[%clk 0:01:52.4]} 23. Qxc5 {[%clk 0:00:27]} 23... Qe6
{[%clk 0:01:52.8]} 24. f5 {[%clk 0:00:18.4]} 24... Qf6 {[%clk 0:01:34.3]} 25. c3
{[%clk 0:00:16.5]} 25... b6 {[%clk 0:01:35.6]} 26. Bd4 {[%clk 0:00:09.8]} 26...
bxc5 {[%clk 0:01:36.2]} 27. Bxf6 {[%clk 0:00:10.5]} 27... Bxf6 {[%clk
0:01:38.1]} 28. fxg6 {[%clk 0:00:11.2]} 28... fxg6 {[%clk 0:01:40]} 0-1